Cogmind - Beta 13 @@@ ROGUE MODE // 2024.04.16 @ 21:01:34 Player: SVIT13 Result: Destroyed by G-34 Mercenary with Small Laser Performance ------------- Evolutions (1) 500 Regions Visited (3) 600 Robots Destroyed (29) 145 Value Destroyed (726) 726 Prototype IDs (0) 0 Alien Tech Used (0) 0 Bonus (13) 13 TOTAL SCORE: 1984 Bonus ------- High Alert Combat Kills 8 Follower Combat Kills 21 Friendly Fire -16 Cogmind --------- Core Integrity 0/400 Matter 253/300 Energy 125/125 System Corruption 0% Temperature Cool (24) Movement Rolling (85) Location -9/Materials Parts ------- > --- POWER (1) -------- Light Ion Engine > --- PROPULSION (3) --- Wheel Armored Wheel > --- UTILITY (2) ------ Small Storage Unit Hardened Light Armor Plating > --- WEAPON (3) ------- Small Laser Shotgun Heavy Hammer > --- INVENTORY (8) ---- Backup Power I Huge Storage Unit Improved Terrain Scanner Targeting Computer Light Armor Plating Light Armor Plating Peak State ------------ > --- POWER ------------ Light Nuclear Core > --- PROPULSION ------- Armored Wheel Armored Wheel Armored Wheel > --- UTILITY ---------- Small Storage Unit Light Armor Plating > --- WEAPON ----------- Particle Gun Particle Gun Rocket Launcher > --- INVENTORY -------- Light Ion Engine Wheel Wheel Armored Wheel Improved Terrain Scanner Grenade Launcher Heavy Hammer [Rating: 18] Favorites ----------- Power Light Ion Engine Engine Light Ion Engine Power Core Light Nuclear Core Propulsion Armored Wheel Wheel Armored Wheel Utility Small Storage Unit Device Improved Terrain Scanner Storage Small Storage Unit Protection Light Armor Plating Weapon Particle Gun Energy Gun Particle Gun Ballistic Gun Shotgun Launcher Rocket Launcher Impact Weapon Heavy Hammer Build | -11 -10 -10 -9 ------- Run | Yrd Mat Min Mat Slots Evolved 2 | . . . 2 Power . | . . . . Propulsion 1 | . . . 1 Utility . | . . . . Weapon 1 | . . . 1 Parts Attached 32 | 9 4 4 15 Power 3 | 1 . 1 1 Engine 2 | 1 . . 1 Core 1 | . . 1 . Reactor . | . . . . Propulsion 9 | 3 2 . 4 Treads . | . . . . Leg . | . . . . Wheel 9 | 3 2 . 4 Hover . | . . . . Flight . | . . . . Utility 7 | 2 . 1 4 Device 1 | 1 . . . Storage 1 | 1 . . . Processor . | . . . . Hackware . | . . . . Protection 5 | . . 1 4 Artifact . | . . . . Weapon 13 | 3 2 2 6 Energy Gun 6 | 2 2 . 2 Energy Cannon . | . . . . Ballistic Gun 2 | 1 . . 1 Ballistic Cannon . | . . . . Launcher 4 | . . 2 2 Special Weapon . | . . . . Impact Weapon 1 | . . . 1 Slashing Weapon . | . . . . Piercing Weapon . | . . . . Special Melee Weapon . | . . . . Unidentified Prototypes . | . . . . Parts Lost 11 | . . . 11 Power 1 | . . . 1 Propulsion 3 | . . . 3 Utility 3 | . . . 3 Weapon 4 | . . . 4 Highest Loss Streak 5 | . . . 5 To Critical Strikes . | . . . . Average Slot Usage (%) 91 | . 100 100 82 Engine 6 | . 14 11 1 Core 5 | . . 2 8 Wheel 26 | . 28 28 24 Device 3 | . 14 2 . Storage 12 | . 14 14 11 Protection 8 | . . 11 9 Energy Gun 15 | . 28 14 13 Launcher 6 | . . 14 3 Impact Weapon 4 | . . . 10 Naked Turns . | . . . . Heaviest Build 23 | 13 15 20 23 Greatest Support 36 | 26 24 24 36 Greatest Overweight (x) 7 | . . . 7 Average Overweight (x) . | . . . . Largest Inventory Capacity 8 | 8 8 8 8 Average Capacity 7 | 7 8 8 8 Most Carried 8 | 5 8 8 8 Average Carried 6 | 2 6 7 6 Final Capacity 8 | 8 8 8 8 Final Carried 8 | 4 8 8 6 Class Distribution -------------------- 98% | Mutant Dominant Class ---------------- Mutant | -10/Materials Mutant | -10/Mines Mutant | -9/Materials Resources | -11 -10 -10 -9 ----------- Run | Yrd Mat Min Mat Matter Collected 570 | 290 29 73 178 Remotely . | . . . . Salvage Created 952 | 95 85 34 738 Parts 40 | 10 7 5 18 Haulers Intercepted 1 | . 1 . . Recyclers Shooed 1 | 1 . . . Parts Field Recycled . | . . . . Retrieved Matter . | . . . . Parts Self-Destructed . | . . . . Prevented . | . . . . Kills | -11 -10 -10 -9 ------- Run | Yrd Mat Min Mat Combat Hostiles Destroyed 18 | . . 3 15 Melee 3 | . . . 3 Guns 6 | . . 1 5 AOE 2 | . . 2 . Classes Destroyed 11 | 2 2 1 6 Worker 2 | . . . 2 Builder 1 | . . . 1 Tunneler 2 | 1 . . 1 Hauler 1 | . 1 . . Recycler 2 | 1 . . 1 Watcher 3 | . 1 . 2 Swarmer 3 | . . 3 . Grunt 8 | . . . 8 Brawler 1 | . . . 1 Duelist 1 | . . . 1 Sentry 5 | . . . 5 Best Kill Streak 7 | 2 1 2 7 Combat Bots Only 3 | . . 2 3 Max Kills in Single Turn 2 | 1 1 2 2 Gunslinging . | . . . . Exploded 2 | . . 2 . Melee 1 | . . . 1 Uniques/NPCs Destroyed . | . . . . Combat | -11 -10 -10 -9 -------- Run | Yrd Mat Min Mat Hostile Shots Fired 140 | . . 5 135 Missed 31 | . . 3 28 Damage Taken 1505 | . . 17 1488 Core 414 | . . 8 406 Absorbed by Shields . | . . . . Regen/Repaired (Parts) 35 | . . . 35 Core Remaining (%) 98 | 100 . 96 . Volleys Fired 31 | 3 8 6 14 Largest 2 | 2 2 2 2 Hottest 130 | 80 130 98 98 Shots Fired 53 | 6 16 8 23 Gun 44 | 6 16 6 16 Cannon . | . . . . Launcher 9 | . . 2 7 Special . | . . . . Kinetic 2 | . . . 2 Thermal 22 | . 2 6 14 Explosive 9 | . . 2 7 Electromagnetic 20 | 6 14 . . Robot Hit Streak 5 | 3 5 2 5 Robot Miss Streak 3 | 1 3 2 2 Penetration Max . | . . . . Secondary Targets . | . . . . Shots Hit Robots 67 | 4 10 3 50 Core Hits 27 | 3 2 4 18 Critical Kills . | . . . . Critical Parts Destroyed 9 | . . . 9 Critical Strikes 12 | . 1 1 10 Burn 3 | . 1 1 1 Smash 9 | . . . 9 Melee Attacks 57 | . . . 57 Impact 57 | . . . 57 Slashing . | . . . . Piercing . | . . . . Sneak Attacks 3 | . . . 3 Combat Hostiles . | . . . . Follow-up Attacks . | . . . . Damage Inflicted 2175 | 51 151 148 1825 Guns 422 | 51 151 45 175 Cannons . | . . . . Explosions 348 | . . 103 245 Melee 1405 | . . . 1405 Ramming . | . . . . Kinetic 40 | . . . 40 Thermal 194 | . 14 45 135 Explosive 348 | . . 103 245 Electromagnetic 188 | 51 137 . . Impact 1405 | . . . 1405 Slashing . | . . . . Piercing . | . . . . Highest Corruption . | . . . . Average Corruption . | . . . . Corruption Purged . | . . . . Corruption Blocked . | . . . . Overload Shots . | . . . . Overflow Damage 451 | . . . 451 Projectiles . | . . . . Explosions . | . . . . Melee 451 | . . . 451 Knockbacks 10 | . . . 10 Impact 10 | . . . 10 Kinetic . | . . . . Secondary . | . . . . Self-Inflicted Damage . | . . . . Shots . | . . . . Rammed . | . . . . Targets Rammed . | . . . . Kicked . | . . . . Crushed . | . . . . Highest Temperature 255 | 54 90 101 255 Average Temperature 66 | 28 38 39 99 Received Heat Transfer 594 | . . . 594 Siege Activations . | . . . . Robots Corrupted . | . . . . Combat Hostiles . | . . . . Parts Fried 16 | . . . 16 Impact Corruptions 18 | . . . 18 Robots Melted . | . . . . Combat Hostiles . | . . . . Parts Melted 5 | . 2 2 1 Heat Transferred 691 | . 111 185 395 Parts Sabotaged . | . . . . Parts Stolen . | . . . . Parts Stripped . | . . . . Power Chain Reactions . | . . . . Alert | -11 -10 -10 -9 ------- Run | Yrd Mat Min Mat Peak Influence 413 | 10 39 123 413 Initial 28 | . 6 15 28 Average 120 | 5 18 44 224 Maximum Alert Level 2 | . . . 2 Low Security (%) 74 | 100 100 100 42 Level 1 25 | . . . 57 Level 2 . | . . . . Level 3 . | . . . . Level 4 . | . . . . Level 5 . | . . . . High Security . | . . . . Max Security . | . . . . Squads Dispatched 3 | . 1 . 2 Investigation 2 | . . . 2 Extermination . | . . . . Reinforcement 1 | . 1 . . Assault . | . . . . Garrison . | . . . . Intercept . | . . . . Searches Triggered . | . . . . Construction Impeded . | . . . . Haulers Reinforced . | . . . . Active Scanning Responses . | . . . . Cargo Convoy Interrupts . | . . . . Stealth | -11 -10 -10 -9 --------- Run | Yrd Mat Min Mat Distress Signals 1 | . . . 1 Communications Jammed . | . . . . Distress Signals . | . . . . Times Spotted 34 | . 3 5 26 Peak Tracking Total 5 | . 1 3 5 Tactical Retreats 4 | . . . 4 Traps | -11 -10 -10 -9 ------- Run | Yrd Mat Min Mat Traps Triggered . | . . . . Indirectly . | . . . . Trap Hack Attempts . | . . . . Triggered . | . . . . Disarmed . | . . . . Reprogrammed . | . . . . Reused . | . . . . Traps Extracted . | . . . . Installed . | . . . . Triggered . | . . . . Machines | -11 -10 -10 -9 ---------- Run | Yrd Mat Min Mat Machines Disabled 3 | . . 1 2 Max in Single Turn 1 | . . 1 1 Machines Repaired . | . . . . Machines Dismantled . | . . . . Machines Sabotaged . | . . . . Overloaded Fab Kills . | . . . . Hacking | -11 -10 -10 -9 --------- Run | Yrd Mat Min Mat Machines Accessed 9 | . 2 1 6 Terminals 6 | . 1 1 4 Fabricators . | . . . . Repair Stations 1 | . . . 1 Recycling Units 2 | . 1 . 1 Scanalyzers . | . . . . Garrison Access . | . . . . Total Hacks 17 | . 4 1 12 Successful 9 | . 2 1 6 Failed 8 | . 2 . 6 Catastrophic 4 | . 1 . 3 Database Lockouts . | . . . . Manual 3 | . 1 . 2 Terminals 10 | . 3 1 6 Fabricators . | . . . . Repair Stations 4 | . . . 4 Recycling Units 3 | . 1 . 2 Scanalyzers . | . . . . Garrison Access . | . . . . Terminal Hacks 4 | . 1 1 2 Emergency Access Points 1 | . . . 1 Locate Traps 1 | . 1 . . Zone Layout 2 | . . 1 1 Fabricator Hacks . | . . . . Repair Station Hacks 3 | . . . 3 Scan Component 1 | . . . 1 Repair 1 | . . . 1 Refit 1 | . . . 1 Recycling Unit Hacks 2 | . 1 . 1 Report Inventory 1 | . 1 . . Retrieve Components 1 | . . . 1 Scanalyzer . | . . . . Garrison Access Hacks . | . . . . Unauthorized Hacks . | . . . . Terminals . | . . . . Fabricators . | . . . . Repair Stations . | . . . . Recycling Units . | . . . . Scanalyzers . | . . . . Garrison Access . | . . . . Data Cores Recovered . | . . . . Used . | . . . . Hacking Detections 6 | . 1 1 4 Full Trace Events 2 | . . . 2 Feedback Events . | . . . . Feedback Blocked . | . . . . Robot Schematics Acquired . | . . . . Robots Built . | . . . . Authchips . | . . . . Time . | . . . . Total Robot Build Rating . | . . . . Part Schematics Acquired . | . . . . Parts Built . | . . . . Authchips . | . . . . Time . | . . . . Total Part Build Rating . | . . . . Parts Repaired 1 | . . . 1 Time 26 | . . . 26 Parts Recycled . | . . . . Recycled Matter . | . . . . Retrieved Matter . | . . . . Retrieved Components 4 | . . . 4 Parts Scanalyzed . | . . . . Part Schematics Acquired . | . . . . Parts Damaged . | . . . . Bothacking | -11 -10 -10 -9 ------------ Run | Yrd Mat Min Mat Used RIF Installer . | . . . . Robots Hacked . | . . . . Non-combat . | . . . . Combat . | . . . . Robot Hacks Applied . | . . . . Relay Couplers Released . | . . . . Fabnet Peak Effective % . | . . . . Robots Rewired . | . . . . Allies Hacked . | . . . . Hacks Repelled . | . . . . Allies | -11 -10 -10 -9 -------- Run | Yrd Mat Min Mat Total Allies 3 | . . 3 . Largest Group 3 | . . 3 1 Highest-Rated Group 40 | . . 40 16 Highest-Rated Ally 16 | . . 16 16 Total Orders . | . . . . Ally Attacks 16 | . . 15 1 Total Damage 141 | . . 123 18 Kills 3 | . . 3 . Allies Corrupted . | . . . . Allies Melted . | . . . . Intel | -11 -10 -10 -9 ------- Run | Yrd Mat Min Mat Robot Analysis Total . | . . . . Derelict Logs Recovered 2 | . . 2 . Drone Launches . | . . . . Drone Recoveries . | . . . . Exploration | -11 -10 -10 -9 ------------- Run | Yrd Mat Min Mat Turns Passed 1573 | 69 211 586 707 Spaces Moved 1324 | 49 202 609 464 Core 14 | 5 . . 9 Treads . | . . . . Legs . | . . . . Wheels 1310 | 44 202 609 455 Hover . | . . . . Flight . | . . . . Fastest Speed 50 | 50 80 90 85 Average Speed 89 | 80 83 90 93 Slowest Speed 400 | 90 90 90 400 Overloaded Moves . | . . . . Propulsion Burnouts . | . . . . Robots Hopped . | . . . . Cave-ins Triggered . | . . . . Exploration Rate (%) 42 | 3 30 98 37 Regions Visited 3 Branch Regions 1 Pre-discovered Areas 1 | . . 1 . Known Exits Taken . | . . . . Unknown Exits Taken 3 | 1 1 1 . Scrap Searched 1 | . . 1 . Spaces Dug 8 | . . . 8 Terrain Destroyed 54 | . . 18 36 Melee 8 | . . . 8 Projectile . | . . . . AOE 46 | . . 18 28 Terrain Rammed . | . . . . Walls Destroyed . | . . . . Machines Disabled . | . . . . Actions | -11 -10 -10 -9 --------- Run | Yrd Mat Min Mat Total 1553 | 71 229 638 615 Wait 66 | . . 14 52 Move 1321 | 48 201 608 464 Hop . | . . . . Pick Up 35 | 11 10 3 11 Fast Attach . | . . . . Attach 18 | 7 . . 11 Detach . | . . . . Swap 14 | 2 4 4 4 Drop 11 | . 6 3 2 Fire 31 | 3 8 6 14 Melee 57 | . . . 57 Ram . | . . . . Kick . | . . . . Crush . | . . . . Escape Stasis . | . . . . Rewire . | . . . . Trap . | . . . . Miscellaneous . | . . . . Route ------- -11/Scrapyard -10/Materials -10/Mines (discovered 2 exits: *Mat x2) -9/Materials (discovered 2 exits: *Min x2) History --------- Turn | Location | Event 15 | -11/Scrapyard | Discovered new exit (range 15) 70 | -11/Scrapyard | Entered Materials 268 | -10/Materials | Discovered new exit (range 16) 281 | -10/Materials | Entered Mines 289 | -10/Mines | Received a Rocket Launcher from a helpful Derelict 289 | -10/Mines | Learned location of Storage (-7) 317 | -10/Mines | Build established: Mutant 320 | -10/Mines | Discovered new exit (range 5) 328 | -10/Mines | Assisted by bots powering up and referring to "LRC-V3" 565 | -10/Mines | Discovered new exit (range 12) 867 | -10/Mines | Entered Materials 867 | -9/Materials | Accompanied by 1 ally 867 | -9/Materials | Evolved 2 slots: Propulsion x1, Weapon x1 868 | -9/Materials | Identified exit to Mines 1206 | -9/Materials | Core integrity fell below 50% 1257 | -9/Materials | Lost 5 parts (3n1u1w) 1442 | -9/Materials | Core integrity fell below 20% 1465 | -9/Materials | Lost 3 parts (1p1u1w) 1510 | -9/Materials | Repaired Wheel 1574 | -9/Materials | Destroyed by G-34 Mercenary with Small Laser Last Messages --------------- 01510_ Acquired Wheel. 01512_ Connecting with Repair Station... 01514_ ALERT: Suspicious activity at Repair Station M002. Dispatching Investigation squad. 01517_ Connecting with Terminal... >>Access(Emergency) Found 1 emergency access door: (79,3) Map updated. 01527_ U-05 Engineer lays Concrete. 01531_ T-07 Excavator is excavating. 01531_ U-05 Engineer lays Concrete. 01536_ T-07 Excavator is excavating. 01536_ U-05 Engineer lays Concrete. 01538_ Acquired 11 matter. 01544_ Acquired Hrd. Light Armor Plating. 01549_ Acquired Shotgun. 01555_ Acquired Sml. Laser. 01557_ Dropped Backup Laser I. 01570_ G-34 Mercenary destroyed. Map ----- +----------------------------------------------------+ | | | | | | | | | | | | | | | | | | | | | | | | | | | | | | | ?????????#############################??????? | | ?????????# ## # #??????? | | ?????????# """ ## " " # T """ """ #??????? | | ?????????# """ ## "R" + """ """ #??????? | | ?????????# """ ## """ # """ """ #??????? | | ????###### ## # #??????? | | ##### ##+#########+#########+######??????? | | % %% #?????????? | | % % #?????????? | | ##### ##### ### #####g#### ########????? | | ?#####+#####?# #?# #?# @! # #????? | | ?# #?# #?# #?# [ # #????? | | ?# ### #?# #?# # #????? | | ?# + ### ### ### ##????? | | ?# #### ## ## ! #?# ##?????? | | ?# #??# ## ## != #?######??????? | | ?# #??? ## #########?????????????? | | ?# #??? ## #?????????????????????? | | ?# %#??? #######?????????????????????? | | ?#########+#??? #???????????????????????????? | | ?????????# #??? #???????????????????????????? | | ########## #### #########???????????????????? | | ??????????????????? | | ??????????????????? | | ??????????????????? | | ## ##### ####+#########???????????????????? | | ## #???# #????????????????????????????????? | | ## #???# #????????????????????????????????? | | ## #???# #????????????????????????????????? | | ?# #???# #????????????????????????????????? | | ## #####+##???????????????????????????????? | | ## # #???????????????????????????????? | | # T #???????????????????????????????? | | # #???????????????????????????????? | | "" # #???????????????????????????????? | +----------------------------------------------------+ Best States ------------- Heat Dissipation 28 Energy Generation 14 Energy Capacity 160 Matter Stores 300 Matter Capacity 300 Sight Range 16 Terrain Scan Range 16 Terrain Scan Density 10 Armor Coverage 150 Evasion (%) 44 Item Schematics ----------------- None Robot Schematics ------------------ None Fabricated ------------ Nothing Alien Tech Used ----------------- None Achievements -------------- None Challenges ------------ None Game ------ Seed MetafieldSchematicFalx Manual? 0 Play Time 00:30:08 Cumulative 7.9 hours Start 2024.04.16 @ 20:29:17 End 2024.04.16 @ 21:01:34 Sessions 1 Manual Loads 0 Difficulty Rogue Special Mode None Game No. 11 Rogue 11 Adventurer 0 Explorer 0 Win Type - Total 0 Types 0/0/0/0/0/0/0/0/0 Lore% 4 Gallery% 11 Achievement% 12 Wizard Run 0 Options --------- Layout 1 ASCII 0 Keyboard 0 Movement Numpad Keybinds 0 Fullscreen 1 Font 24/Smallcaps Map View 50x35 Zoom Use 0% Tactical HUD 1 Map Filters NONE Filters NONE Steam 1 RUN: d928ec67-a28d-4f94-a438-0792b43e4076